[Event "TUR-ch Youth U17 2019"]
[Site "Belek"]
[Date "2019.01.25"]
[Round "9"]
[White "Acar, Utku Cengiz"]
[Black "Kirilmaz, Emre"]
[Result "0-1"]
[ECO "B03"]
[WhiteElo "2078"]
[BlackElo "2035"]
[Annotator "NA"]
[PlyCount "168"]
[EventDate "2019.01.20"]
[EventType "swiss"]
[EventCountry "TUR"]
[SourceTitle "playchess.com"]
[Source "ChessBase"]
[SourceQuality "1"]
[TimeControl "5400+30"]

{[%evp 14,168,25,32767,32767,32767,14,11,8,21,32767,32767,32767,32767,32767,32767,47,13,3,8,0,2,32767,14,0,12,18,-14,58,0,22,32767,52,20,25,17,77,-65,-30,-50,115,196,178,160,185,32767,245,181,239,32767,32767,32767,32767,0,32767,168,160,-31,32767,32767,-31,-58,32767,32767,32767,32767,-4,-10,-6,-52,-24,-29,32767,32767,-25,-122,-131,-125,-222,-224,32767,32767,-210,-170,-225,-184,-239,-203,-183,-260,-438,-316,-262,-419,-383,-311,-462,-381,-523,-486,-225,-306,-358,-341,-423,-529,-39,-319,-6,-71,-39,-18,0,-18,-4,-8,-33,-8,-4,-6,0,-8,-4,-352,-483,-339,-568,-424,-447,-700,32767,32767,32767,32767,32767,32767,-1047,32767,32767,32767,32767,-4618,-4332,-4627,-29948,-29965,-29970,-5548,-29971,-29971,-29973,-5575,-29974,-29963,-29975,-29973,-29977]} 1. e4 {[%emt 0:00:30]} Nf6 {[%emt 0:00:30]} 2. e5 {[%emt 0:02:30]} Nd5 {[%emt 0:00:30]} 3. c4 {[%emt 0:00:30]} Nb6 {[%emt 0:00:30]} 4. d4 {[%emt 0:00:30]} d6 {[%emt 0:00:30]} 5. exd6 {[%emt 0:00:00]} cxd6 {[%emt 0:00:00]} 6. Nc3 {[%emt 0:00:00]} g6 {[%emt 0:00:00]} 7. a4 {[%emt 0:01:30]} Bg7 {[%emt 0:00:30]} 8. a5 {[%emt 0:00:30]} N6d7 {[%emt 0:00:00]} 9. Ra3 {[%emt 0:01:30] B03: Alekhine's Defence: Four Pawns Attack} O-O {[%emt 0:02:00]} 10. Nf3 {[%emt 0:01:30] LiveBook: 14 Games} Nf6 {[%emt 0:12:30]} 11. d5 {[%emt 0:03:30]} e6 {[%emt 0:00:30]} 12. Be2 {[%emt 0:02:30]} exd5 {[%emt 0:03:30]} 13. cxd5 {[%emt 0:00:30]} Re8 $146 {[%emt 0:07:30]} ({Predecessor:} 13... Na6 14. O-O Bg4 15. Be3 Nc5 16. h3 Bxf3 17. Bxf3 {1-0 (60) Dranov,A (2340)-Velicka,P (2420) Ceske Budejovice 1993}) 14. O-O {[%emt 0:07:30]} Nbd7 {[%emt 0:04:30]} 15. h3 {[%emt 0:08:30]} Nc5 {[%emt 0:12:30]} 16. Be3 {[%emt 0:05:30]} Nfe4 {[%emt 0:12:30]} 17. Nxe4 {[%emt 0:10:30]} Nxe4 {[%emt 0:00:00]} 18. Nd4 {[%emt 0:00:30]} Bd7 {[%emt 0:08:00]} 19. a6 {[%emt 0:11:30]} b6 {[%emt 0:01:30]} 20. Re1 {[%emt 0:12:30]} f5 {[%emt 0:04:30]} (20... Qf6 $11) 21. Bc4 {[%emt 0:15:56]} Qf6 {[%emt 0:07:30]} 22. Ne6 {[%emt 0:05:21]} Bxe6 {[%emt 0:02:53]} 23. dxe6 {[%emt 0:01:42]} Qxb2 {[%emt 0:00:19]} 24. Rb3 {[%emt 0:01:52]} Qe5 {[%emt 0:03:05]} (24... Qf6 $1 $11 {remains equal.}) 25. f4 {[%emt 0:00:34]} ({White should play} 25. Bd5 $16 Rac8 26. e7+ Kh8 27. Bg5) 25... Qf6 {[%emt 0:00:51]} 26. Rd3 {[%emt 0:00:19]} Qh4 $2 {[%emt 0:02:04]} (26... Rac8 $15 {stays ahead.} 27. Bd5 Nc3) 27. Bd5 {[%emt 0:03:50]} Rac8 {[%emt 0:01:55]} (27... Nc3 $16 28. Bf2 Qe7) 28. Bxe4 $1 {[%emt 0:01:17]} fxe4 {[%emt 0:00:30]} 29. Rxd6 {[%emt 0:00:00]} Bf8 {[%emt 0:05:09]} 30. Rd7 {[%emt 0:01:05]} Re7 {[%emt 0:03:19]} 31. Rxe7 {[%emt 0:01:17]} Bxe7 {[%emt 0:00:09]} 32. Bf2 {[%emt 0:00:27]} Qxf4 {[%emt 0:00:02]} 33. Qd7 {[%emt 0:00:36]} Qc7 {[%emt 0:00:01]} 34. Rxe4 {[%emt 0:00:00]} Bd6 {[%emt 0:03:51] [#]} 35. Qxc7 $2 {[%emt 0:00:37]} (35. Bh4 $1 $18 h6 36. Re1) 35... Rxc7 {[%emt 0:01:26]} 36. Bh4 {[%emt 0:00:06]} Kf8 {[%emt 0:00:10]} 37. Kf2 {[%emt 0:00:46]} b5 {[%emt 0:00:49]} 38. Kf3 {[%emt 0:00:30]} Ke8 {[%emt 0:00:30]} 39. Rd4 {[%emt 0:00:36]} Be7 {[%emt 0:00:35]} 40. Bf2 {[%emt 0:00:43]} Rc6 {[%emt 0:00:01]} 41. Rd7 {[%emt 0:00:14]} (41. Rd5 $5 {[%cal Rd5b5]}) 41... Rxa6 {[%emt 0:00:44]} 42. Bxa7 {[%emt 0:00:54]} Rxe6 {[%emt 0:00:03]} 43. Rb7 {[%emt 0:00:00]} b4 {[%emt 0:00:10]} 44. Bd4 {[%emt 0:00:00] [#]} (44. Be3 $11) 44... Kd8 $1 {[%emt 0:00:33]} 45. g4 {[%emt 0:01:13]} Kc8 {[%emt 0:00:09]} 46. Ra7 {[%emt 0:00:24]} Kb8 {[%emt 0:01:51]} 47. Rd7 {[%emt 0:00:34]} Bf6 {[%emt 0:00:32]} 48. Bxf6 {[%emt 0:00:55]} Rxf6+ {[%emt 0:00:30]} 49. Ke4 {[%emt 0:00:00]} b3 {[%emt 0:00:00]} 50. Rd2 {[%emt 0:00:38]} Rb6 {[%emt 0:00:23]} 51. Rb2 {[%emt 0:00:00]} Kc7 {[%emt 0:00:07]} 52. Kd5 {[%emt 0:00:04]} Kd7 {[%emt 0:00:34]} 53. h4 {[%emt 0:00:05]} Ke7 {[%emt 0:00:25]} 54. Re2+ {[%emt 0:00:25]} Kf6 {[%emt 0:00:38]} 55. Rf2+ {[%emt 0:00:30]} Kg7 {[%emt 0:00:30]} 56. Rb2 {[%emt 0:00:00] [#]} h6 {[%emt 0:00:22]} (56... g5 $142 $1 {[%mdl 512]} 57. Kc5 (57. hxg5 Kg6) 57... Rb8) 57. Kc5 {[%emt 0:00:24]} Rb8 {[%emt 0:00:11]} 58. Kd6 {[%emt 0:00:00]} Rb4 {[%emt 0:00:38]} 59. g5 {[%emt 0:00:03]} h5 $2 {[%emt 0:00:00]} (59... Kh7 $19 60. Ke5 Rxh4 61. Rxb3 hxg5) 60. Ke6 $2 {[%emt 0:00:47] [#]} (60. Kd7 $1 $11 {and White stays safe.}) 60... Re4+ $2 {[%emt 0:00:26]} ({Less strong is} 60... Rxh4 61. Rxb3 Re4+ 62. Kd6 $17) (60... Rb5 $1 $19 61. Ke7 Rb7+ 62. Kd6 Kf7) 61. Kd6 {[%emt 0:00:22]} (61. Kd5 $11 {remains equal.} Rb4 62. Kd6) 61... Re3 {[%emt 0:01:00]} 62. Rf2 {[%emt 0:00:27]} Re4 {[%emt 0:00:59]} 63. Rb2 {[%emt 0:01:03]} Rxh4 {[%emt 0:00:36]} 64. Rxb3 {[%emt 0:00:05]} Rf4 {[%emt 0:00:00]} 65. Rb7+ {[%emt 0:00:54]} Rf7 {[%emt 0:00:16]} 66. Rb8 {[%emt 0:00:00]} h4 {[%emt 0:00:00]} 67. Rb4 {[%emt 0:01:43]} h3 {[%emt 0:00:00]} 68. Rh4 $2 {[%emt 0:00:17]} (68. Rb2 $11) 68... Rf5 {[%emt 0:00:05]} 69. Rxh3 {[%emt 0:01:01]} Rxg5 {[%emt 0:00:12]} 70. Ke6 {[%emt 0:00:07]} Ra5 {[%emt 0:00:13]} 71. Rf3 {[%emt 0:01:32]} g5 {[%emt 0:03:03]} 72. Rf5 {[%emt 0:00:43]} Ra6+ {[%emt 0:00:30]} 73. Ke5 {[%emt 0:00:30]} Kg6 {[%emt 0:00:30]} 74. Rf8 {[%emt 0:00:00]} Ra1 {[%emt 0:00:00]} 75. Rg8+ {[%emt 0:01:00]} Kh5 {[%emt 0:00:25]} 76. Ke4 {[%emt 0:00:00]} Rf1 {[%emt 0:00:00]} 77. Ke3 {[%emt 0:00:29]} Kh4 {[%emt 0:00:15]} 78. Ke2 {[%emt 0:00:38]} Rf7 {[%emt 0:00:08]} 79. Rh8+ {[%emt 0:00:30]} Kg3 {[%emt 0:00:36]} 80. Rg8 {[%emt 0:00:30]} g4 {[%emt 0:00:00]} 81. Rg6 {[%emt 0:00:41]} Kh3 {[%emt 0:00:15]} 82. Rh6+ {[%emt 0:00:00]} Kg2 {[%emt 0:00:08]} 83. Rg6 {[%emt 0:00:11]} Re7+ {[%emt 0:00:00]} 84. Kd2 {[%emt 0:00:06]} g3 {[%emt 0:00:00]} 0-1

[Event "TUR-ch Youth U17 2019"]
[Site "Belek"]
[Date "2019.01.25"]
[Round "9"]
[White "Catal, Uktenur"]
[Black "Sen, Irem"]
[Result "0-1"]
[ECO "D01"]
[WhiteElo "1854"]
[BlackElo "1765"]
[Annotator "NA RC"]
[PlyCount "118"]
[EventDate "2019.01.20"]
[EventType "swiss"]
[EventCountry "TUR"]
[SourceTitle "playchess.com"]
[Source "ChessBase"]
[SourceQuality "1"]
[TimeControl "5400+30"]

{[%evp 8,118,6,-1,4,-47,0,-8,0,-7,32767,32767,32767,32767,32767,32767,32767,0,0,27,32767,32767,32767,35,51,49,37,32767,51,33,37,0,78,54,109,108,178,150,157,160,32767,32767,119,44,145,32767,32767,32767,40,39,34,27,32,41,99,88,102,74,84,96,102,104,95,90,185,201,216,202,218,108,300,204,261,292,356,96,64,32767,0,32767,32767,0,0,0,0,0,8,0,0,0,0,0,0,0,0,0,0,-70,32767,-16,-8,-23,0,0,0,0,-8,32767,-1868,32767,32767,32767,-29970]} 1. d4 {[%emt 0:00:30]} d5 {[%emt 0:00:30]} 2. Nc3 {[%emt 0:00:00]} Nf6 {[%emt 0:03:30]} 3. Bg5 {[%emt 0:00:00]} Nbd7 {[%emt 0:08:30]} 4. Nf3 {[%emt 0:00:30]} c6 {[%emt 0:01:30]} 5. Qd3 {[%emt 0:00:30]} g6 {[%emt 0:03:30]} 6. O-O-O {[%emt 0:00:00] D01: Veresov Opening} Bg7 {[%emt 0:00:30]} 7. e4 {[%emt 0:00:00]} dxe4 {[%emt 0:03:30]} 8. Nxe4 {[%emt 0:00:00] LiveBook: 13 Games} Nxe4 {[%emt 0:11:30]} 9. Qxe4 {[%emt 0:00:00]} Bf6 $146 {[%emt 0:01:30]} ({You set blue moves yourself with the critical opening position annotation.:} 9... Nf6 10. Qe1 Bg4 11. Bc4 Bxf3 12. gxf3 O-O 13. h4 Qd7 {½-½ (31) Mihok,O (2507)-Cigan,S (2357) Austria 2016}) 10. Bh6 {[%emt 0:03:30]} Nb6 {[%emt 0:06:30]} 11. g4 {[%emt 0:04:30]} Rg8 {[%emt 0:08:30]} 12. c4 {[%emt 0:05:30]} Be6 {[%emt 0:18:30]} 13. Ne5 {[%emt 0:13:30]} Bg7 {[%emt 0:08:30]} 14. Bxg7 {[%emt 0:05:30]} Rxg7 {[%emt 0:00:30]} 15. Bd3 {[%emt 0:01:30]} Qc7 {[%emt 0:00:30]} 16. Kb1 {[%emt 0:05:30]} O-O-O {[%emt 0:00:00]} 17. b3 {[%emt 0:05:30]} h5 {[%emt 0:01:00]} 18. gxh5 {[%emt 0:06:30]} gxh5 {[%emt 0:00:30]} 19. Rhg1 {[%emt 0:02:30]} Rdg8 {[%emt 0:00:37]} (19... Rxg1 $11 {remains equal.} 20. Rxg1 Nd7) 20. Rg3 {[%emt 0:01:30]} Qd8 {[%emt 0:06:23]} (20... Rxg3 $14 21. hxg3 (21. fxg3 Nd7 $14) 21... Nd7) 21. Bc2 {[%emt 0:02:30]} Rg5 {[%emt 0:01:32]} (21... Qc7 $16 {was worth a try.}) 22. Qe3 {[%emt 0:03:30]} Rxg3 {[%emt 0:00:50]} 23. fxg3 {[%emt 0:01:30]} Rg7 {[%emt 0:01:50]} 24. d5 {[%emt 0:05:30]} cxd5 {[%emt 0:03:44]} 25. Qc3 {[%emt 0:00:30]} ({And not} 25. cxd5 Nxd5 26. Qe1 Qd6 $15) (25. Nxf7 $16 Bxf7 26. Qe5) 25... d4 {[%emt 0:05:10]} ({Better is} 25... Qc7 $14) 26. Qxd4 {[%emt 0:00:30]} Qxd4 {[%emt 0:00:04]} 27. Rxd4 {[%emt 0:00:30]} Rg5 {[%emt 0:00:21]} 28. Nf3 {[%emt 0:00:30]} Rc5 {[%emt 0:00:15]} 29. Rf4 {[%emt 0:07:30]} f6 {[%emt 0:02:11]} 30. Nd4 {[%emt 0:01:30]} Bg4 {[%emt 0:00:31]} (30... Bf7 $11) 31. Bf5+ {[%emt 0:00:30]} Bxf5+ {[%emt 0:00:17]} 32. Rxf5 {[%emt 0:00:30]} Nd7 {[%emt 0:00:43]} 33. Rxc5+ {[%emt 0:00:00]} Nxc5 {[%emt 0:00:02] [#]} 34. Nf5 $1 {[%emt 0:00:00]} Kd7 {[%emt 0:00:09]} 35. Ng7 {[%emt 0:03:30]} h4 {[%emt 0:00:10]} (35... Nd3 $16) 36. gxh4 {[%emt 0:00:00]} e5 {[%emt 0:00:06]} 37. Kc2 {[%emt 0:01:00]} Ke7 {[%emt 0:00:58]} 38. Nf5+ {[%emt 0:00:00]} (38. h5 $18 {is more deadly.}) 38... Kf7 $2 {[%emt 0:00:00]} (38... Ke6 $16 39. Ne3 f5) 39. b4 {[%emt 0:00:00]} Na6 {[%emt 0:00:17]} 40. Nd6+ {[%emt 0:00:30]} Kg6 {[%emt 0:00:06]} 41. Nxb7 $2 {[%emt 0:00:30]} (41. a3 $18 {is more deadly.}) 41... Nxb4+ {[%emt 0:00:03] NOTEXT-4834} 42. Kc3 {[%emt 0:00:30]} Nxa2+ {[%emt 0:00:35]} 43. Kb3 {[%emt 0:00:30]} Nc1+ {[%emt 0:00:06]} 44. Kc2 {[%emt 0:00:30]} Ne2 {[%emt 0:00:05]} 45. Kd3 {[%emt 0:00:30]} Nd4 {[%emt 0:00:43]} 46. Ke4 {[%emt 0:01:30]} Kh5 {[%emt 0:00:51]} 47. Na5 {[%emt 0:00:30]} Kxh4 {[%emt 0:00:42]} 48. c5 {[%emt 0:00:00]} Kg4 {[%emt 0:00:25]} 49. c6 {[%emt 0:00:00]} Nb5 {[%emt 0:00:32]} 50. Kd5 {[%emt 0:00:30]} Kf4 {[%emt 0:00:24]} 51. Kc5 {[%emt 0:00:30]} a6 {[%emt 0:02:36]} 52. Kb6 {[%emt 0:00:30]} ({Better is} 52. Nc4 $11) 52... e4 {[%emt 0:00:00]} 53. Kxa6 {[%emt 0:00:00]} Nc7+ {[%emt 0:00:07]} 54. Kb6 {[%emt 0:02:00]} Nd5+ {[%emt 0:00:08]} 55. Kc5 {[%emt 0:00:00]} Nc7 {[%emt 0:01:13]} 56. Kb6 {[%emt 0:00:00]} e3 {[%emt 0:00:02]} 57. Nb7 {[%emt 0:00:30]} Nd5+ {[%emt 0:01:25]} 58. Kb5 {[%emt 0:01:30]} e2 {[%emt 0:00:39]} 59. Nc5 {[%emt 0:00:30]} Ke3 {[%emt 0:00:27]} 0-1

[Event "TUR-ch Youth U17 2019"]
[Site "Belek"]
[Date "2019.01.25"]
[Round "9"]
[White "Sahin, Hayrun Nisa"]
[Black "Kocyigit, Buse Naz"]
[Result "1/2-1/2"]
[ECO "B90"]
[WhiteElo "1743"]
[BlackElo "2043"]
[Annotator "NA"]
[PlyCount "141"]
[EventDate "2019.01.20"]
[EventType "swiss"]
[EventCountry "TUR"]
[SourceTitle "playchess.com"]
[Source "ChessBase"]
[SourceQuality "1"]
[TimeControl "5400+30"]

{[%evp 8,138,18,33,18,32767,32767,32767,32767,0,8,5,18,32767,38,29,32,-20,-20,32767,-52,32767,32767,32767,32767,-39,-47,-63,-85,-68,-31,-43,-12,32767,0,0,0,32767,-13,-21,-10,-43,32767,32767,-84,-85,-64,-176,32767,0,32767,0,32767,32767,32767,32767,32767,32767,32767,32767,32767,32767,32767,32767,32767,32767,32767,32767,32767,32767,32767,32767,32767,325,575,344,405,-24,-21,-41,-43,-52,32767,32767,32767,32767,32767,32767,-68,-111,-54,-50,-33,-60,-60,-68,-69,-97,-69,-63,-64,-122,-71,-102,-74,-145,-71,-67,-62,-123,-114,-167,-95,-100,-52,-52,-8,-102,-97,-95,-93,-105,-49,-50,-57,-61,-61,-41,-59,-54,-8,-57,0]} 1. e4 {[%emt 0:01:30]} c5 {[%emt 0:00:30]} 2. Nf3 {[%emt 0:00:30]} d6 {[%emt 0:00:30]} 3. d4 {[%emt 0:00:30]} cxd4 {[%emt 0:00:00]} 4. Nxd4 {[%emt 0:00:00]} Nf6 {[%emt 0:00:00]} 5. Nc3 {[%emt 0:00:00]} a6 {[%emt 1:31:30]} 6. Be3 {[%emt 0:02:30]} e5 {[%emt 0:00:00]} 7. Nf3 {[%emt 0:01:30]} Be7 {[%emt 0:00:00]} 8. Bc4 {[%emt 0:05:30]} O-O {[%emt 0:00:00]} 9. O-O {[%emt 0:03:30]} Nc6 {[%emt 0:00:00]} 10. Qe2 {[%emt 0:08:30]} b5 {[%emt 0:00:00] B90: Sicilian Najdorf: Unusual White 6th moves, 6 Be3 Ng4 and 6 Be3 e5} (10... Na5 11. Bd5 Be6 12. Rfd1 Qc7 13. Bxe6 fxe6 14. Ng5 Qc4 15. Qxc4 Nxc4 16. Nxe6 Rfc8 17. Bc1 h6 18. Nd5 Nxd5 19. exd5 Nb6 20. Be3 Nc4 21. Bc1 Nb6 22. Be3 {½-½ (22) Timman,J (2562)-Giri,A (2752) Amstelveen 2017}) 11. Bb3 {[%emt 0:11:30] LiveBook: 15 Games} Na5 {[%emt 0:00:00]} 12. Nd5 $146 {[%emt 0:14:30]} ({Predecessor:} 12. Bg5 Nd7 13. Bxe7 Qxe7 14. Bd5 Rb8 15. a3 Nb6 16. Rfd1 Bg4 17. h3 Bh5 18. Rd3 {½-½ (75) Andriasian,Z (2621)-Zakhartsov,V (2453) Tallinn 2016}) 12... Nxb3 {[%emt 0:00:00]} 13. Bb6 {[%emt 0:02:30]} Qd7 {[%emt 0:00:00]} 14. Nxf6+ {[%emt 0:02:30]} Bxf6 {[%emt 0:00:00]} 15. axb3 {[%emt 0:00:30]} Qc6 {[%emt 0:00:00]} 16. Ba5 {[%emt 0:02:30]} Bb7 {[%emt 0:00:00]} 17. Nd2 {[%emt 0:00:30]} d5 {[%emt 0:00:00]} ({Wrong is} 17... Qxc2 $2 18. Rfc1 $18) 18. Rfe1 {[%emt 0:16:30]} Rac8 {[%emt 0:00:00]} ({Don't go for} 18... Qxc2 $2 19. Rec1 $18) 19. c3 {[%emt 0:04:30]} Be7 {[%emt 0:00:00]} 20. Rad1 {[%emt 0:06:14]} f6 {[%emt 0:00:00]} 21. Qd3 {[%emt 0:04:24]} dxe4 {[%emt 0:00:00]} 22. Qxe4 {[%emt 0:01:23]} Qd7 {[%emt 0:00:00]} 23. Qe2 {[%emt 0:01:35]} Rce8 {[%emt 0:00:00]} 24. f3 {[%emt 0:03:15]} Qc6 {[%emt 0:03:43]} 25. Kh1 {[%emt 0:00:30] [#]} f5 $1 {[%emt 0:01:58]} 26. c4 {[%emt 0:00:50]} b4 {[%emt 0:02:09]} 27. Nf1 {[%emt 0:02:10]} (27. c5 $15) 27... Bd6 {[%emt 0:02:13]} 28. Qd2 {[%emt 0:00:49] NOTEXT-4834} Be7 {[%emt 0:00:53]} 29. Qd5+ {[%emt 0:01:45]} (29. Rxe5 $16 Bg5 30. Qe2 (30. Qxg5 Rxe5 31. Bxb4 h6 $14)) 29... Qxd5 {[%emt 0:00:31]} 30. cxd5 {[%emt 0:00:30]} Bd6 {[%emt 0:00:30]} 31. Ne3 {[%emt 0:00:30]} e4 {[%emt 0:00:30]} 32. Nc4 {[%emt 0:00:30]} exf3 {[%emt 0:00:30]} 33. Nxd6 {[%emt 0:00:30]} fxg2+ {[%emt 0:00:30]} 34. Kxg2 {[%emt 0:00:30]} Bxd5+ {[%emt 0:00:30]} 35. Kf2 {[%emt 0:00:30]} Rxe1 {[%emt 0:00:30]} 36. Rxe1 {[%emt 0:00:30]} g5 {[%emt 0:00:30]} 37. Re5 {[%emt 0:00:30]} Bxb3 {[%emt 0:00:30]} 38. Bxb4 {[%emt 0:00:30]} Rb8 {[%emt 0:00:30]} 39. Bc3 {[%emt 0:00:30]} Bc2 {[%emt 0:00:27]} 40. Re7 {[%emt 0:00:00]} Rd8 {[%emt 0:00:32]} (40... f4 {was called for.} 41. Rg7+ Kf8 42. Rxg5 Bg6) 41. Rg7+ {[%emt 0:01:40]} Kf8 {[%emt 0:00:30]} 42. Rxh7 $2 {[%emt 0:00:00]} (42. Ra7 $18) 42... Rxd6 {[%emt 0:00:00]} 43. Bb4 {[%emt 0:01:22]} Kg8 {[%emt 0:00:03]} 44. Rc7 {[%emt 0:00:56]} Rb6 {[%emt 0:00:34]} 45. Bc3 {[%emt 0:00:01]} Rg6 {[%emt 0:01:32]} 46. Rc8+ {[%emt 0:00:03]} Kf7 {[%emt 0:00:00]} 47. Bb4 {[%emt 0:00:11]} Be4 {[%emt 0:00:25]} 48. Rh8 {[%emt 0:00:37]} Ke6 {[%emt 0:00:45]} 49. Bd2 {[%emt 0:00:25]} Kd5 {[%emt 0:00:41]} 50. Rh5 {[%emt 0:00:44]} g4 {[%emt 0:00:22]} 51. Rh8 {[%emt 0:00:27]} Kc4 {[%emt 0:00:24]} 52. Rb8 {[%emt 0:00:30]} Kd3 {[%emt 0:00:35]} 53. Bf4 {[%emt 0:00:19]} Rc6 {[%emt 0:00:36]} 54. Ke1 {[%emt 0:00:54]} ({Better is} 54. Kg3 $15) 54... Kc2 {[%emt 0:00:32]} 55. Ke2 {[%emt 0:01:07]} Bf3+ {[%emt 0:00:58]} 56. Ke3 {[%emt 0:00:10] [#]} (56. Kf2 $15) 56... Re6+ {[%emt 0:00:00]} (56... Rc4 $142 $1 {[%cal Rc4e4]} 57. Re8 Bd5) 57. Kf2 {[%emt 0:00:09]} Re2+ {[%emt 0:00:37]} 58. Kf1 {[%emt 0:00:04]} ({Better is} 58. Kg3 $15) 58... Re4 {[%emt 0:00:00]} 59. Bg5 {[%emt 0:00:32]} Re5 {[%emt 0:00:54]} ({Black should play} 59... a5 $19 60. Bf6 f4 61. Rc8+ Kb1) 60. Rc8+ {[%emt 0:00:20]} Kb3 {[%emt 0:00:31]} 61. Rc3+ {[%emt 0:00:51]} Ka4 {[%emt 0:00:29]} ({Much worse is} 61... Kxb2 $6 {[#]} 62. Rxf3 $1 {[%mdl 512]} Rd5 63. Bf6+ Ka2 64. Rf2+ Kb3 65. Rb2+ Kc4 66. Rc2+ Kb3 67. Rb2+ Kc4 68. Ra2 $14) 62. Re3 {[%emt 0:00:40]} (62. h4 $11) 62... Rxe3 {[%emt 0:00:56]} 63. Bxe3 {[%emt 0:00:02]} Kb3 {[%emt 0:00:16]} 64. Bd4 {[%emt 0:00:01]} a5 {[%emt 0:00:18]} 65. Kf2 {[%emt 0:00:12]} Bd5 {[%emt 0:00:44]} 66. Kg3 {[%emt 0:00:05]} Kc4 {[%emt 0:00:15]} 67. Be5 {[%emt 0:00:42]} a4 {[%emt 0:00:31]} 68. h3 {[%emt 0:00:10]} gxh3 {[%emt 0:00:55]} (68... Kd3 {[%emt 0:00:55]}) 69. Kxh3 {[%emt 0:00:30]} Kd3 $11 {[%emt 0:00:30]} 70. Kg3 {[%emt 0:00:30]} Ke4 {[%emt 0:00:30]} 71. Bf4 {[%emt 0:00:30]} 1/2-1/2

[Event "TUR-ch Youth U17 2019"]
[Site "Belek"]
[Date "2019.01.25"]
[Round "9"]
[White "Akti, Ezgi"]
[Black "Barutcu, Sevil"]
[Result "1-0"]
[ECO "B27"]
[WhiteElo "1713"]
[BlackElo "1340"]
[Annotator "NA RC"]
[PlyCount "113"]
[EventDate "2019.01.20"]
[EventType "swiss"]
[EventCountry "TUR"]
[SourceTitle "playchess.com"]
[Source "ChessBase"]
[SourceQuality "1"]
[TimeControl "5400+30"]

1. e4 {[%emt 0:00:30]} c5 {[%emt 0:00:30]} 2. Nf3 {[%emt 0:00:30]} g6 {[%emt 0:00:00]} 3. c3 {[%emt 0:01:30]} Bg7 {[%emt 0:00:00]} 4. d4 {[%emt 0:01:30]} cxd4 {[%emt 0:00:30]} 5. cxd4 {[%emt 0:00:30]} d5 {[%emt 0:00:00]} 6. e5 {[%emt 0:03:30]} Nc6 {[%emt 0:00:00]} 7. Nc3 {[%emt 0:12:30]} Nh6 {[%emt 0:00:00]} 8. Be2 {[%emt 0:14:30]} Bf5 {[%emt 0:00:00]} 9. Qb3 {[%emt 0:19:30]} Rb8 {[%emt 0:49:30]} 10. Qxd5 {[%emt 0:04:30]} Qxd5 {[%emt 0:06:30]} 11. Nxd5 {[%emt 0:01:30]} Rd8 {[%emt 0:00:00]} 12. Bc4 {[%emt 0:14:30]} Be4 {[%emt 0:07:00]} 13. Nc7+ {[%emt 0:00:30]} Kd7 {[%emt 0:11:30]} 14. Nb5 {[%emt 0:01:49]} a6 {[%emt 0:01:30]} 15. d5 {[%emt 0:04:35]} Bxf3 {[%emt 0:02:23]} 16. dxc6+ {[%emt 0:01:09]} Bxc6 {[%emt 0:00:52]} 17. Nc3 {[%emt 0:00:17]} e6 {[%emt 0:03:26]} 18. f3 {[%emt 0:01:41]} Nf5 {[%emt 0:01:13]} 19. Bf4 {[%emt 0:00:30]} h6 {[%emt 0:01:39]} 20. O-O-O+ {[%emt 0:03:13]} Kc8 {[%emt 0:00:34]} 21. Rhe1 {[%emt 0:00:40]} Nh4 {[%emt 0:01:13]} 22. Bf1 {[%emt 0:01:38]} Nf5 {[%emt 0:00:55]} 23. Ne4 {[%emt 0:04:45]} Rxd1+ {[%emt 0:02:21]} 24. Kxd1 {[%emt 0:00:26]} Bxe4 {[%emt 0:00:45]} 25. Rxe4 {[%emt 0:00:27]} g5 {[%emt 0:00:44]} 26. Bd2 {[%emt 0:01:00]} Rd8 {[%emt 0:02:24]} 27. Kc1 {[%emt 0:00:16]} Rd5 {[%emt 0:02:01]} 28. Bc3 {[%emt 0:00:14]} Ne7 {[%emt 0:00:25]} 29. g3 {[%emt 0:00:56]} Ng6 {[%emt 0:01:31]} 30. f4 {[%emt 0:00:00]} gxf4 {[%emt 0:02:09]} 31. gxf4 {[%emt 0:00:15]} Ne7 {[%emt 0:00:30]} 32. Bc4 {[%emt 0:00:30]} Rd7 {[%emt 0:00:30]} 33. Re2 {[%emt 0:00:30]} Nd5 {[%emt 0:00:30]} 34. Bxd5 {[%emt 0:00:30]} Rxd5 {[%emt 0:00:30]} 35. Rg2 {[%emt 0:00:30]} Bf8 {[%emt 0:00:30]} 36. Rg8 {[%emt 0:00:30]} Rd8 {[%emt 0:00:30]} 37. Ba5 {[%emt 0:00:30]} Re8 {[%emt 0:00:30]} 38. Bb4 {[%emt 0:00:30]} Bxb4 {[%emt 0:00:30]} 39. Rxe8+ {[%emt 0:00:30]} Kd7 {[%emt 0:00:30]} 40. Rh8 {[%emt 0:00:30]} Bc5 {[%emt 0:00:30]} 41. Kd2 {[%emt 0:00:30]} Be7 {[%emt 0:00:30]} 42. Rxh6 {[%emt 0:00:30]} Bf8 {[%emt 0:00:30]} 43. Rh3 {[%emt 0:00:30]} Bb4+ {[%emt 0:00:30]} 44. Kd3 {[%emt 0:00:30]} Bc5 {[%emt 0:00:30]} 45. Rf3 {[%emt 0:00:00]} Ke7 {[%emt 0:03:03]} 46. h4 {[%emt 0:00:00]} Kf8 {[%emt 0:00:00]} 47. Rg3 {[%emt 0:00:00]} Ke8 {[%emt 0:01:18]} 48. h5 {[%emt 0:00:00]} Bf8 {[%emt 0:00:00]} 49. Ke4 {[%emt 0:00:00]} Ke7 {[%emt 0:00:22]} 50. Rb3 {[%emt 0:00:08]} b5 {[%emt 0:00:36]} 51. Ra3 {[%emt 0:00:23]} Ke8 {[%emt 0:01:02]} 52. Rxa6 {[%emt 0:00:09]} b4 {[%emt 0:00:06]} 53. a3 {[%emt 0:00:41]} bxa3 {[%emt 0:00:30]} 54. bxa3 {[%emt 0:00:00]} Bh6 {[%emt 0:00:21]} 55. a4 {[%emt 0:00:00]} Kd8 {[%emt 0:00:16]} 56. Rc6 {[%emt 0:00:27]} Kd7 {[%emt 0:00:09]} 57. Rc2 {[%emt 0:00:00]} 1-0